Workbook

Sheet Inicio
B1: INFORMACIÓN SOBRE ESTA PLANTILLA
B2: Use esta plantilla para crear un presupuesto marketing de canal.
B3: Escriba las ventas anticipadas de cada mes y otros detalles en las tablas.
B4: Los totales se calculan automáticamente y se actualizan los minigráficos.
B5: Nota:
B6: Se proporcionan instrucciones adicionales en la columna A de la hoja de cálculo PRESUPUESTO MARKETING DE CANAL. Este texto se ocultó de forma intencionada. Para eliminar el texto, seleccione la columna A y, a continuación, ELIMINAR. Para mostrar el texto, seleccione la columna A y, a continuación, cambie el color de fuente.
B7: Para obtener más información sobre las tablas, presione las teclas MAYÚS y F10 dentro de una tabla, seleccione la opción TABLA y, después, TEXTO ALTERNATIVO.

Sheet Presupuesto marketing de canal
A1: Cree un presupuesto marketing de canal en esta hoja de cálculo. El título de la hoja de cálculo está en la celda derecha. En las celdas de esta columna encontrará instrucciones útiles. Presione la flecha abajo para empezar. El título de la hoja de cálculo está en la celda derecha.
A2: Las etiquetas Tasa y Meses están en esta fila, de las celdas C2 a O2, y la etiqueta Total está en la celda Q2. | C2: Tasa | D2: Mes 1 | E2: Mes 2 | F2: Mes 3 | G2: Mes 4 | H2: Mes 5 | I2: Mes 6 | J2: Mes 7 | K2: Mes 8 | L2: Mes 9 | M2: Mes 10 | N2: Mes 11 | O2: Mes 12 | Q2: Total
A3: La etiqueta Total de ventas anticipadas está en la celda derecha. Escriba las ventas anticipadas de cada mes en las celdas D3 a O3. El total se calcula automáticamente en la celda Q3. | B3: TOTAL DE VENTAS ANTICIPADAS (000) € | D3: 750 | E3: 200 | F3: 500 | G3: 1,500 | H3: 1,200 | I3: 1,500 | J3: 1,500 | K3: 1,800 | L3: 2,000 | M3: 2,000 | N3: 2,000 | O3: 2,000 | Q3: =SUM(D3:O3) -> 16,950
A4: Escriba los detalles en la tabla Personal. Para ello, empiece por la celda derecha. El total de personal de cada mes se calcula automáticamente al final de la tabla, y el total anual en la celda Q9. El minigráfico se actualiza en la celda S9. La instrucción siguiente está en la celda A10. | B4: Elementos de personal | C4: Tasa | D4: Mes 1 | E4: Mes 2 | F4: Mes 3 | G4: Mes 4 | H4: Mes 5 | I4: Mes 6 | J4: Mes 7 | K4: Mes 8 | L4: Mes 9 | M4: Mes 10 | N4: Mes 11 | O4: Mes 12
B5: PERSONAL (% DEL TOTAL DE VENTAS) | D5: =D11+D36+D44+D51 -> 110% | E5: 110% | F5: =F11+F36+F44+F51 -> 110% | G5: 110% | H5: 110% | I5: 110% | J5: 110% | K5: 110% | L5: 85% | M5: 85% | N5: 85% | O5: 85%
B6: Recursos humanos: plantilla | C6: 5 | D6: =+$C$6 -> 5 | E6: 5 | F6: 5 | G6: 5 | H6: 5 | I6: 5 | J6: 5 | K6: 5 | L6: 5 | M6: 5 | N6: 5 | O6: 5
B7: Recursos humanos: costo | D7: =$C$6*D6 -> 25.00 | E7: 25.00 | F7: 25.00 | G7: 25.00 | H7: 25.00 | I7: 25.00 | J7: 25.00 | K7: 25.00 | L7: 25.00 | M7: 25.00 | N7: 25.00 | O7: 25.00 | Q7: =SUM('Presupuesto marketing de canal'!$D7:$O7) -> 300.00
B8: Comisión | C8: 0.10% | D8: =D3*$C$8 -> 0.75 | E8: 0.20 | F8: 0.50 | G8: 1.50 | H8: 1.20 | I8: 1.50 | J8: 1.50 | K8: 1.80 | L8: 2.00 | M8: 2.00 | N8: 2.00 | O8: 2.00 | Q8: =SUM('Presupuesto marketing de canal'!$D8:$O8) -> 16.95
B9: Total de personal (000) € | D9: =SUM(D7:D8) -> 25.75 | E9: =SUM(E7:E8) -> 25.20 | F9: 25.50 | G9: 26.50 | H9: 26.20 | I9: 26.50 | J9: 26.50 | K9: 26.80 | L9: 27.00 | M9: 27.00 | N9: 27.00 | O9: 27.00 | Q9: =SUM(Q7:Q8) -> 316.95
A10: Escriba los detalles en la tabla Marketing directo. Para ello, empiece por la celda derecha. El total de telemarketing de cada mes se calcula automáticamente al final de la tabla, y el total anual en la celda Q17. El minigráfico se actualiza en la celda S17. La instrucción siguiente está en la celda A18. | B10: ELEMENTOS DE MARKETING DIRECTO | C10: Tasa | D10: Mes 1 | E10: Mes 2 | F10: Mes 3 | G10: Mes 4 | H10: Mes 5 | I10: Mes 6 | J10: Mes 7 | K10: Mes 8 | L10: Mes 9 | M10: Mes 10 | N10: Mes 11 | O10: Mes 12
B11: MARKETING DIRECTO (% DEL TOTAL DE VENTAS) | D11: 100% | E11: 100% | F11: 75% | G11: 40% | H11: 33% | I11: 25% | J11: 20% | K11: 10% | L11: 5% | M11: 5% | N11: 5% | O11: 5%
B12: Telemarketing (% de ventas directas) | D12: 100% | E12: 50% | F12: 50% | G12: 50% | H12: 50% | I12: 50% | J12: 50% | K12: 50% | L12: 50% | M12: 50% | N12: 50% | O12: 50%
B13: Recursos humanos: plantilla | C13: 3 | D13: =$C$13*D12 -> 3 | E13: 1.5 | F13: 1.5 | G13: 1.5 | H13: 1.5 | I13: 1.5 | J13: 1.5 | K13: 1.5 | L13: 1.5 | M13: 1.5 | N13: 1.5 | O13: 1.5 | Q13: =SUM('Presupuesto marketing de canal'!$D13:$O13) -> 19.50
B14: Soporte de la infraestructura | D14: 25 | E14: 10 | F14: 25 | G14: 10 | H14: 25 | I14: 10 | J14: 25 | K14: 10 | L14: 25 | M14: 10 | N14: 25 | O14: 10 | Q14: =SUM('Presupuesto marketing de canal'!$D14:$O14) -> 210.00
B15: Comisión | C15: 0.10% | D15: =$C$15*D3*D11*D12 -> 0.75 | E15: 0.10 | F15: 0.19 | G15: 0.30 | H15: 0.20 | I15: 0.19 | J15: 0.15 | K15: 0.09 | L15: 0.05 | M15: 0.05 | N15: 0.05 | O15: 0.05 | Q15: =SUM('Presupuesto marketing de canal'!$D15:$O15) -> 2.16
B16: Aprendizaje | D16: 25 | E16: 10 | F16: 25 | G16: 10 | H16: 25 | I16: 10 | J16: 25 | K16: 10 | L16: 25 | M16: 10 | N16: 25 | O16: 10 | Q16: =SUM('Presupuesto marketing de canal'!$D16:$O16) -> 210.00
B17: Total de telemarketing (000) € | D17: =SUM(D13:D16) -> 53.75 | E17: =SUM(E13:E16) -> 21.60 | F17: =SUM(F13:F16) -> 51.69 | G17: 21.80 | H17: 51.70 | I17: 21.69 | J17: 51.65 | K17: 21.59 | L17: 51.55 | M17: 21.55 | N17: 51.55 | O17: 21.55 | Q17: =SUM(Q13:Q16) -> 441.66
A18: Escriba los detalles en la tabla Marketing online a partir de la celda a la derecha. El total de marketing online de cada mes se calcula automáticamente al final de la tabla, y el total anual en la celda Q27. El minigráfico se actualiza en la celda S27. La instrucción siguiente se encuentra en la celda A28. | B18: ELEMENTOS DE MARKETING ONLINE | C18: Tasa | D18: Mes 1 | E18: Mes 2 | F18: Mes 3 | G18: Mes 4 | H18: Mes 5 | I18: Mes 6 | J18: Mes 7 | K18: Mes 8 | L18: Mes 9 | M18: Mes 10 | N18: Mes 11 | O18: Mes 12
B19: MARKETING ONLINE (% DE VENTAS DIRECTAS) | D19: 25% | E19: 25% | F19: 25% | G19: 25% | H19: 25% | I19: 25% | J19: 25% | K19: 25% | L19: 25% | M19: 25% | N19: 25% | O19: 25%
B20: Recursos humanos: plantilla | C20: 1 | D20: =$C$20*D19 -> 0.25 | E20: 0.25 | F20: 0.25 | G20: 0.25 | H20: 0.25 | I20: 0.25 | J20: 0.25 | K20: 0.25 | L20: 0.25 | M20: 0.25 | N20: 0.25 | O20: 0.25 | Q20: =SUM('Presupuesto marketing de canal'!$D20:$O20) -> 3.00
B21: Desarrollo de sitio web (costo único) | D21: 500 | Q21: =SUM('Presupuesto marketing de canal'!$D21:$O21) -> 500.00
B22: Hospedaje | D22: 10 | E22: 10 | F22: 10 | G22: 10 | H22: 10 | I22: 10 | J22: 10 | K22: 10 | L22: 10 | M22: 10 | N22: 10 | O22: 10 | Q22: =SUM('Presupuesto marketing de canal'!$D22:$O22) -> 120.00
B23: Soporte técnico y mantenimiento | D23: 25 | N23: 25 | Q23: =SUM('Presupuesto marketing de canal'!$D23:$O23) -> 50.00
B24: Facebook | E24: 100 | G24: 100 | I24: 100 | K24: 100 | M24: 100 | O24: 100 | Q24: =SUM('Presupuesto marketing de canal'!$D24:$O24) -> 600.00
B25: Twitter | D25: 100 | F25: 100 | H25: 100 | J25: 100 | L25: 100 | N25: 100 | Q25: =SUM('Presupuesto marketing de canal'!$D25:$O25) -> 600.00
B26: YouTube | E26: 100 | G26: 100 | H26: 100 | L26: 100 | M26: 100 | O26: 100 | Q26: =SUM('Presupuesto marketing de canal'!$D26:$O26) -> 600.00
B27: Total de marketing online (000) € | D27: =SUM(D20:D26) -> 635.25 | E27: =SUM(E20:E26) -> 210.25 | F27: 110.25 | G27: 210.25 | H27: 210.25 | I27: 110.25 | J27: 110.25 | K27: 110.25 | L27: 210.25 | M27: 210.25 | N27: 135.25 | O27: =SUM(O20:O26) -> 210.25 | Q27: =SUM(Q20:Q26) -> 2,473.00
A28: Escriba los detalles en la tabla Correo Directo a partir de la celda a la derecha. El total de correo directo de cada mes se calcula automáticamente al final de la tabla, y el total anual en la celda Q34. La instrucción siguiente se encuentra en la celda A35. | B28: ELEMENTOS DE CORREO DIRECTO | C28: Tasa | D28: Mes 1 | E28: Mes 2 | F28: Mes 3 | G28: Mes 4 | H28: Mes 5 | I28: Mes 6 | J28: Mes 7 | K28: Mes 8 | L28: Mes 9 | M28: Mes 10 | N28: Mes 11 | O28: Mes 12
B29: CORREO DIRECTO (% DE VENTAS DIRECTAS)
B30: Recursos humanos: costo | Q30: =SUM('Presupuesto marketing de canal'!$D30:$O30) -> 0.00
B31: Material | D31: 1000 | E31: 1000 | F31: 1000 | G31: 1000 | H31: 1000 | I31: 1000 | J31: 1000 | K31: 1000 | L31: 1000 | M31: 1000 | N31: 1000 | O31: 1000 | Q31: =SUM('Presupuesto marketing de canal'!$D31:$O31) -> 12,000.00
B32: Gastos de envío | D32: 250 | E32: 250 | F32: 250 | G32: 250 | H32: 250 | I32: 250 | J32: 250 | K32: 250 | L32: 250 | M32: 250 | N32: 250 | O32: 250 | Q32: =SUM('Presupuesto marketing de canal'!$D32:$O32) -> 3,000.00
B33: Total de correo directo (000) € | D33: =SUM(D30:D32) -> 1,250.00 | E33: =SUM(E30:E32) -> 1,250.00 | F33: 1,250.00 | G33: 1,250.00 | H33: 1,250.00 | I33: 1,250.00 | J33: 1,250.00 | K33: 1,250.00 | L33: 1,250.00 | M33: 1,250.00 | N33: 1,250.00 | O33: 1,250.00 | Q33: =SUM(Q30:Q32) -> 15,000.00
A34: El total de marketing directo se calcula automáticamente en esta fila (de celda D31 a O31), y el total anual en la celda Q31. El minigráfico se actualiza en la celda S31. | B34: Total de marketing directo (000) € | D34: =SUM(CorreoDirecto[[#Totals],[Mes 1]],MarketingOnline[[#Totals],[Mes 1]],MarketingDirecto[[#Totals],[Mes 1]]) -> 1,939.00 | E34: =SUM(CorreoDirecto[[#Totals],[Mes 2]],MarketingOnline[[#Totals],[Mes 2]],MarketingDirecto[[#Totals],[Mes 2]]) -> 1,481.85 | F34: =SUM(CorreoDirecto[[#Totals],[Mes 3]],MarketingOnline[[#Totals],[Mes 3]],MarketingDirecto[[#Totals],[Mes 3]]) -> 1,411.94 | G34: =SUM(CorreoDirecto[[#Totals],[Mes 4]],MarketingOnline[[#Totals],[Mes 4]],MarketingDirecto[[#Totals],[Mes 4]]) -> 1,482.05 | H34: =SUM(CorreoDirecto[[#Totals],[Mes 5]],MarketingOnline[[#Totals],[Mes 5]],MarketingDirecto[[#Totals],[Mes 5]]) -> 1,511.95 | I34: =SUM(CorreoDirecto[[#Totals],[Mes 6]],MarketingOnline[[#Totals],[Mes 6]],MarketingDirecto[[#Totals],[Mes 6]]) -> 1,381.94 | J34: =SUM(CorreoDirecto[[#Totals],[Mes 7]],MarketingOnline[[#Totals],[Mes 7]],MarketingDirecto[[#Totals],[Mes 7]]) -> 1,411.90 | K34: =SUM(CorreoDirecto[[#Totals],[Mes 8]],MarketingOnline[[#Totals],[Mes 8]],MarketingDirecto[[#Totals],[Mes 8]]) -> 1,381.84 | L34: =SUM(CorreoDirecto[[#Totals],[Mes 9]],MarketingOnline[[#Totals],[Mes 9]],MarketingDirecto[[#Totals],[Mes 9]]) -> 1,511.80 | M34: =SUM(CorreoDirecto[[#Totals],[Mes 10]],MarketingOnline[[#Totals],[Mes 10]],MarketingDirecto[[#Totals],[Mes 10]]) -> 1,481.80 | N34: =SUM(CorreoDirecto[[#Totals],[Mes 11]],MarketingOnline[[#Totals],[Mes 11]],MarketingDirecto[[#Totals],[Mes 11]]) -> 1,436.80 | O34: =SUM(CorreoDirecto[[#Totals],[Mes 12]],MarketingOnline[[#Totals],[Mes 12]],MarketingDirecto[[#Totals],[Mes 12]]) -> 1,481.80 | Q34: =SUM(Q33,Q27,Q17,Q9) -> 18,231.61
A35: Escriba los detalles en la tabla Agente y Corredor a partir de la celda a la derecha. El total de agentes y corredores de cada mes se calcula automáticamente al final de la tabla, y el total anual en la celda Q42. El minigráfico se actualiza en la celda S42. La instrucción siguiente se encuentra en la celda A43. | B35: ELEMENTOS DE AGENTE/CORREDOR | C35: Tasa | D35: Mes 1 | E35: Mes 2 | F35: Mes 3 | G35: Mes 4 | H35: Mes 5 | I35: Mes 6 | J35: Mes 7 | K35: Mes 8 | L35: Mes 9 | M35: Mes 10 | N35: Mes 11 | O35: Mes 12
B36: AGENTE/CORREDOR (% DEL TOTAL DE VENTAS) | D36: 10% | E36: 10% | F36: 10% | G36: 10% | H36: 10% | I36: 10% | J36: 10% | K36: 10% | L36: 10% | M36: 10% | N36: 10% | O36: 10%
B37: Comunicación | D37: 50 | E37: 50 | F37: 50 | G37: 50 | H37: 50 | I37: 50 | J37: 50 | K37: 50 | L37: 50 | M37: 50 | N37: 50 | O37: 50 | Q37: =SUM('Presupuesto marketing de canal'!$D37:$O37) -> 600.00
B38: Aprendizaje | D38: 250.00 | E38: 250.00 | F38: 250.00 | G38: 250.00 | H38: 250.00 | I38: 250.00 | J38: 250.00 | K38: 250.00 | L38: 250.00 | M38: 250.00 | N38: 250.00 | O38: 250.00 | Q38: =SUM('Presupuesto marketing de canal'!$D38:$O38) -> 3,000.00
B39: Promociones | D39: 600.00 | E39: 600.00 | F39: 600.00 | G39: 600.00 | H39: 600.00 | I39: 600.00 | J39: 600.00 | K39: 600.00 | L39: 600.00 | M39: 600.00 | N39: 600.00 | O39: 600.00 | Q39: =SUM('Presupuesto marketing de canal'!$D39:$O39) -> 7,200.00
B40: Descuentos | C40: 10.00% | D40: =D3*D36*$C$40 -> 7.50 | E40: 2.00 | F40: 5.00 | G40: 15.00 | H40: 12.00 | I40: 15.00 | J40: 15.00 | K40: 18.00 | L40: 20.00 | M40: 20.00 | N40: 20.00 | O40: 20.00 | Q40: =SUM('Presupuesto marketing de canal'!$D40:$O40) -> 169.50
B41: Comisión (% de ventas de agentes) | C41: 10.00% | D41: =D3*D36*$C$41 -> 7.50 | E41: 2.00 | F41: 5.00 | G41: 15.00 | H41: 12.00 | I41: 15.00 | J41: 15.00 | K41: 18.00 | L41: 20.00 | M41: 20.00 | N41: 20.00 | O41: 20.00 | Q41: =SUM('Presupuesto marketing de canal'!$D41:$O41) -> 169.50
B42: Total de agente/corredor (000) € | D42: =SUM(D37:D41) -> 915.00 | E42: =SUM(E37:E41) -> 904.00 | F42: 910.00 | G42: 930.00 | H42: 924.00 | I42: 930.00 | J42: 930.00 | K42: 936.00 | L42: 940.00 | M42: 940.00 | N42: 940.00 | O42: 940.00 | Q42: =SUM(Q37:Q41) -> 11,139.00
A43: Escriba los detalles en la tabla Distribuidores a partir de la celda a la derecha. El total de distribuidores de cada mes se calcula automáticamente al final de la tabla, y el total anual en la celda Q49. El minigráfico se actualiza en la celda S49. La instrucción siguiente se encuentra en la celda A50. | B43: ELEMENTOS DE DISTRIBUIDORES | C43: Tasa | D43: Mes 1 | E43: Mes 2 | F43: Mes 3 | G43: Mes 4 | H43: Mes 5 | I43: Mes 6 | J43: Mes 7 | K43: Mes 8 | L43: Mes 9 | M43: Mes 10 | N43: Mes 11 | O43: Mes 12
B44: DISTRIBUIDORES (% DEL TOTAL DE VENTAS) | D44: 0% | E44: 0% | F44: 0% | G44: 0% | H44: 0% | I44: 15% | J44: 20% | K44: 40% | L44: 40% | M44: 40% | N44: 40% | O44: 40%
B45: Comunicación | D45: 50 | E45: 50 | F45: 50 | G45: 50 | H45: 50 | I45: 50 | J45: 50 | K45: 50 | L45: 50 | M45: 50 | N45: 50 | O45: 50 | Q45: =SUM('Presupuesto marketing de canal'!$D45:$O45) -> 600.00
B46: Aprendizaje | D46: 250.00 | E46: 250.00 | F46: 250.00 | G46: 250.00 | H46: 250.00 | I46: 250.00 | J46: 250.00 | K46: 250.00 | L46: 250.00 | M46: 250.00 | N46: 250.00 | O46: 250.00 | Q46: =SUM(Distribuidores[[#This Row],[Mes 1]:[Mes 12]]) -> 3,000.00
B47: Promociones | D47: 600.00 | E47: 600.00 | F47: 600.00 | G47: 600.00 | H47: 600.00 | I47: 600.00 | J47: 600.00 | K47: 600.00 | L47: 600.00 | M47: 600.00 | N47: 600.00 | O47: 600.00 | Q47: =SUM(Distribuidores[[#This Row],[Mes 1]:[Mes 12]]) -> 7,200.00
B48: Comisiones/descuentos (% de ventas de distribuidores) | C48: 15.00% | D48: =D3*D44*$C$48 -> 0 | E48: 0 | F48: 0 | G48: 0 | H48: 0 | I48: 33.75 | J48: 45 | K48: 108 | L48: 120 | M48: 120 | N48: 120 | O48: 120 | Q48: =SUM(Distribuidores[[#This Row],[Mes 1]:[Mes 12]]) -> 666.75
B49: Total de distribuidor (000) € | D49: =SUM(D45:D48) -> 900.00 | E49: =SUM(E45:E48) -> 900.00 | F49: 900.00 | G49: 900.00 | H49: 900.00 | I49: 933.75 | J49: 945.00 | K49: 1,008.00 | L49: 1,020.00 | M49: 1,020.00 | N49: 1,020.00 | O49: 1,020.00 | Q49: =SUM(Q45:Q48) -> 11,466.75
A50: Escriba los detalles en la tabla Minorista a partir de la celda a la derecha. El total de minoristas de cada mes se calcula automáticamente al final de la tabla, y el total anual en la celda Q56. El minigráfico se actualiza en la celda S56. La instrucción siguiente se encuentra en la celda A57. | B50: ELEMENTOS MINORISTAS | C50: Tasa | D50: Mes 1 | E50: Mes 2 | F50: Mes 3 | G50: Mes 4 | H50: Mes 5 | I50: Mes 6 | J50: Mes 7 | K50: Mes 8 | L50: Mes 9 | M50: Mes 10 | N50: Mes 11 | O50: Mes 12
B51: MINORISTA (% DEL TOTAL DE VENTAS) | D51: 0% | E51: 0% | F51: 25% | G51: 60% | H51: 67% | I51: 60% | J51: 60% | K51: 50% | L51: 30% | M51: 30% | N51: 30% | O51: 30%
B52: Comunicación | D52: 50 | E52: 50 | F52: 50 | G52: 50 | H52: 50 | I52: 50 | J52: 50 | K52: 50 | L52: 50 | M52: 50 | N52: 50 | O52: 50
B53: Aprendizaje | D53: 250.00 | E53: 250.00 | F53: 250.00 | G53: 250.00 | H53: 250.00 | I53: 250.00 | J53: 250.00 | K53: 250.00 | L53: 250.00 | M53: 250.00 | N53: 250.00 | O53: 250.00 | Q53: =SUM('Presupuesto marketing de canal'!$D52:$O52) -> 600.00
B54: Promociones | D54: 600.00 | E54: 600.00 | F54: 600.00 | G54: 600.00 | H54: 600.00 | I54: 600.00 | J54: 600.00 | K54: 600.00 | L54: 600.00 | M54: 600.00 | N54: 600.00 | O54: 600.00 | Q54: =SUM('Presupuesto marketing de canal'!$D53:$O53) -> 3,000.00
B55: Comisiones/descuentos (% de ventas minoristas) | C55: 10.00% | D55: =D3*D51*$C$55 -> 0 | E55: 0 | F55: 12.5 | G55: 90 | H55: 80.4 | I55: 90 | J55: 90 | K55: 90 | L55: 60 | M55: 60 | N55: 60 | O55: 60 | Q55: =SUM('Presupuesto marketing de canal'!$D55:$O55) -> 692.90
B56: Total de minorista (000) € | D56: =SUM(D52:D55) -> 900.00 | E56: =SUM(E52:E55) -> 900.00 | F56: 912.50 | G56: 990.00 | H56: 980.40 | I56: 990.00 | J56: 990.00 | K56: 990.00 | L56: 960.00 | M56: 960.00 | N56: 960.00 | O56: 960.00 | Q56: =SUM(Q53:Q55) -> 4,292.90
A57: Escriba los detalles en la tabla Adquisición y Retención de Clientes a partir de la celda a la derecha. El total de adquisición y retención de clientes de cada mes se calcula automáticamente al final de la tabla, y el total anual en la celda Q62. El minigráfico se actualiza en la celda S62. La instrucción siguiente se encuentra en la celda A63. | B57: ELEMENTOS DE ADQUISICIÓN Y RETENCIÓN DE CLIENTES | C57: Tasa | D57: Mes 1 | E57: Mes 2 | F57: Mes 3 | G57: Mes 4 | H57: Mes 5 | I57: Mes 6 | J57: Mes 7 | K57: Mes 8 | L57: Mes 9 | M57: Mes 10 | N57: Mes 11 | O57: Mes 12
B58: ADQUISICIÓN Y RETENCIÓN DE CLIENTES
B59: Recursos humanos | D59: 50 | E59: 50 | F59: 50 | G59: 50 | H59: 50 | I59: 50 | J59: 50 | K59: 50 | L59: 50 | M59: 50 | N59: 50 | O59: 50 | Q59: =SUM('Presupuesto marketing de canal'!$D59:$O59) -> 600.00
B60: Comunicaciones | D60: 250.00 | E60: 250.00 | F60: 250.00 | G60: 250.00 | H60: 250.00 | I60: 250.00 | J60: 250.00 | K60: 250.00 | L60: 250.00 | M60: 250.00 | N60: 250.00 | O60: 250.00 | Q60: =SUM('Presupuesto marketing de canal'!$D60:$O60) -> 3,000.00
B61: Promociones/cupones | D61: 600 | E61: 600 | F61: 600 | G61: 600 | H61: 600 | I61: 600 | J61: 600 | K61: 600 | L61: 600 | M61: 600 | N61: 600 | O61: 600 | Q61: =SUM('Presupuesto marketing de canal'!$D61:$O61) -> 7,200.00
B62: Total de adquisición y retención de clientes (000) € | D62: =SUM(D59:D61) -> 900.00 | E62: =SUM(E59:E61) -> 900.00 | F62: 900.00 | G62: 900.00 | H62: 900.00 | I62: 900.00 | J62: 900.00 | K62: 900.00 | L62: 900.00 | M62: 900.00 | N62: 900.00 | O62: 900.00 | Q62: =SUM(Q59:Q61) -> 10,800.00
A63: Escriba los detalles en la tabla Otros Gastos, a partir de la celda a la derecha. El total de otros gastos de cada mes se calcula automáticamente al final de la tabla, y el total anual en la celda Q68. El minigráfico se actualiza en la celda S68. La instrucción siguiente se encuentra en la celda A70. | B63: ELEMENTOS DE OTROS GASTOS | C63: Tasa | D63: Mes 1 | E63: Mes 2 | F63: Mes 3 | G63: Mes 4 | H63: Mes 5 | I63: Mes 6 | J63: Mes 7 | K63: Mes 8 | L63: Mes 9 | M63: Mes 10 | N63: Mes 11 | O63: Mes 12
B64: OTROS GASTOS
B65: Viajes | D65: 50 | E65: 50 | F65: 50 | G65: 50 | H65: 50 | I65: 50 | J65: 50 | K65: 50 | L65: 50 | M65: 50 | N65: 50 | O65: 50 | Q65: =SUM('Presupuesto marketing de canal'!$D65:$O65) -> 600.00
B66: Infraestructura (equipo, teléfono, etc.) | D66: 250.00 | E66: 250.00 | F66: 250.00 | G66: 250.00 | H66: 250.00 | I66: 250.00 | J66: 250.00 | K66: 250.00 | L66: 250.00 | M66: 250.00 | N66: 250.00 | O66: 250.00 | Q66: =SUM('Presupuesto marketing de canal'!$D66:$O66) -> 3,000.00
B67: Soporte de canal | D67: 600 | E67: 600 | F67: 600 | G67: 600 | H67: 600 | I67: 600 | J67: 600 | K67: 600 | L67: 600 | M67: 600 | N67: 600 | O67: 600 | Q67: =SUM('Presupuesto marketing de canal'!$D67:$O67) -> 7,200.00
B68: Total de otros gastos (000) € | D68: =SUM(D65:D67) -> 900.00 | E68: =SUM(E65:E67) -> 900.00 | F68: 900.00 | G68: 900.00 | H68: 900.00 | I68: 900.00 | J68: 900.00 | K68: 900.00 | L68: 900.00 | M68: 900.00 | N68: 900.00 | O68: 900.00 | Q68: =SUM(Q65:Q67) -> 10,800.00
A70: El total de presupuesto de marketing cada mes se calcula automáticamente en esta fila (de celda D70 a O70), y el total anual en la celda Q70. El minigráfico se actualiza automáticamente en la celda S70. | B70: TOTAL DE PRESUPUESTO DE MARKETING: | D70: =SUM(D34,AgenteYCorredor[[#Totals],[Mes 1]],Distribuidores[[#Totals],[Mes 1]],Minorista[[#Totals],[Mes 1]],AdquisiciónRetenciónClientes[[#Totals],[Mes 1]],OtrosGastos[[#Totals],[Mes 1]]) -> 6,454.00 | E70: =SUM(OtrosGastos[[#Totals],[Mes 2]],AdquisiciónRetenciónClientes[[#Totals],[Mes 2]],Minorista[[#Totals],[Mes 2]],Distribuidores[[#Totals],[Mes 2]],AgenteYCorredor[[#Totals],[Mes 2]],E34) -> 5,985.85 | F70: =SUM(OtrosGastos[[#Totals],[Mes 3]],AdquisiciónRetenciónClientes[[#Totals],[Mes 3]],Minorista[[#Totals],[Mes 3]],Distribuidores[[#Totals],[Mes 3]],AgenteYCorredor[[#Totals],[Mes 3]],F34) -> 5,934.44 | G70: =SUM(OtrosGastos[[#Totals],[Mes 4]],AdquisiciónRetenciónClientes[[#Totals],[Mes 4]],Minorista[[#Totals],[Mes 4]],Distribuidores[[#Totals],[Mes 4]],AgenteYCorredor[[#Totals],[Mes 4]],G34) -> 6,102.05 | H70: =SUM(OtrosGastos[[#Totals],[Mes 5]],AdquisiciónRetenciónClientes[[#Totals],[Mes 5]],Minorista[[#Totals],[Mes 5]],Distribuidores[[#Totals],[Mes 5]],AgenteYCorredor[[#Totals],[Mes 5]],H34) -> 6,116.35 | I70: =SUM(OtrosGastos[[#Totals],[Mes 6]],AdquisiciónRetenciónClientes[[#Totals],[Mes 6]],Minorista[[#Totals],[Mes 6]],Distribuidores[[#Totals],[Mes 6]],AgenteYCorredor[[#Totals],[Mes 6]],I34) -> 6,035.69 | J70: =SUM(OtrosGastos[[#Totals],[Mes 7]],AdquisiciónRetenciónClientes[[#Totals],[Mes 7]],Minorista[[#Totals],[Mes 7]],Distribuidores[[#Totals],[Mes 7]],AgenteYCorredor[[#Totals],[Mes 7]],J34) -> 6,076.90 | K70: =SUM(OtrosGastos[[#Totals],[Mes 8]],AdquisiciónRetenciónClientes[[#Totals],[Mes 8]],Minorista[[#Totals],[Mes 8]],Distribuidores[[#Totals],[Mes 8]],AgenteYCorredor[[#Totals],[Mes 8]],K34) -> 6,115.84 | L70: =SUM(OtrosGastos[[#Totals],[Mes 9]],AdquisiciónRetenciónClientes[[#Totals],[Mes 9]],Minorista[[#Totals],[Mes 9]],Distribuidores[[#Totals],[Mes 9]],AgenteYCorredor[[#Totals],[Mes 9]],L34) -> 6,231.80 | M70: =SUM(OtrosGastos[[#Totals],[Mes 10]],AdquisiciónRetenciónClientes[[#Totals],[Mes 10]],Minorista[[#Totals],[Mes 10]],Distribuidores[[#Totals],[Mes 10]],AgenteYCorredor[[#Totals],[Mes 10]],M34) -> 6,201.80 | N70: =SUM(OtrosGastos[[#Totals],[Mes 11]],AdquisiciónRetenciónClientes[[#Totals],[Mes 11]],Minorista[[#Totals],[Mes 11]],Distribuidores[[#Totals],[Mes 11]],AgenteYCorredor[[#Totals],[Mes 11]],N34) -> 6,156.80 | O70: =SUM(OtrosGastos[[#Totals],[Mes 12]],AdquisiciónRetenciónClientes[[#Totals],[Mes 12]],Minorista[[#Totals],[Mes 12]],Distribuidores[[#Totals],[Mes 12]],AgenteYCorredor[[#Totals],[Mes 12]],O34) -> 6,201.80 | Q70: =SUM(D70:O70) -> 73,613.31
